fUST/lending_fUST_20260311
["ID","MTS","AMOUNT","RATE_DAILY","PERIOD"]
[408122806,1773158462613,-5000.0,6.249e-05,2]
[408122807,1773158462650,-5000.0,6.312e-05,2]
[408122808,1773158462662,-300.0,6.375e-05,2]
[408122809,1773158462672,-511.0,6.376e-05,2]
[408122810,1773158462682,-182.54604637,6.408e-05,2]
[408122811,1773158462692,-300.0,6.439e-05,2]
[408122812,1773158462702,-300.0,6.439e-05,2]
[408122813,1773158462713,-796.78336769,6.439e-05,2]
[408122820,1773158732134,-169.22679938,6.151e-05,2]
[408122822,1773158831077,-890.51160224,6.089e-05,2]
[408122823,1773158831097,-349.97639776,6.151e-05,2]
[408122825,1773158948130,-5000.0,5.968e-05,2]
[408122826,1773158948152,-5000.0,6.028e-05,2]
[408122827,1773158948173,-300.0,6.088e-05,2]
[408122828,1773158948197,-3487.28773196,6.089e-05,2]
[408122829,1773158948218,-1200.0,6.212e-05,2]
[408122830,1773158948239,-235.9156719,6.275e-05,2]
[408122831,1773158954335,-64.0843281,6.275e-05,2]
[408122832,1773158954355,-209.02095813,6.276e-05,2]
[408122833,1773158954377,-70.87471377,6.293e-05,2]
[408122834,1773158970116,-5000.0,6.169e-05,2]
[408122835,1773158970140,-4838.79839182,6.231e-05,2]
[408122837,1773159002863,176.41,2e-05,2]
[408122838,1773159003968,176.4,2e-05,2]
[408122914,1773159038339,-176.41,2.1e-05,2]
[408122916,1773159038348,-3963.26013678,6.169e-05,2]
[408122919,1773159038360,-1036.73986322,6.169e-05,2]
[408122921,1773159038369,-508.0,6.169e-05,2]
[408122923,1773159038378,-161.20160818,6.231e-05,2]
[408122925,1773159038387,-219.24184283,6.262e-05,2]
[408122927,1773159038397,-1200.0,6.566e-05,2]
[408122928,1773159038406,-300.0,6.567e-05,2]
[408122929,1773159038416,-300.0,6.567e-05,2]
[408122930,1773159038426,-300.0,6.567e-05,2]
[408122931,1773159038435,-300.0,6.568e-05,2]
[408122932,1773159038444,-300.0,6.568e-05,2]
[408122933,1773159038453,-300.0,6.568e-05,2]
[408122935,1773159038462,-300.0,6.568e-05,2]
[408122937,1773159038471,-300.0,6.568e-05,2]
[408122939,1773159038482,-300.0,6.568e-05,2]
[408122941,1773159038492,-300.0,6.568e-05,2]
[408122943,1773159038501,-300.0,6.568e-05,2]
[408122944,1773159038510,-300.0,6.568e-05,2]
[408122946,1773159038522,-300.0,6.568e-05,2]
[408122947,1773159038532,-300.0,6.568e-05,2]
[408122949,1773159038541,-300.0,6.568e-05,2]
[408122950,1773159038551,-300.0,6.568e-05,2]
[408122951,1773159038561,-300.0,6.568e-05,2]
[408122952,1773159038570,-300.0,6.568e-05,2]
[408122953,1773159038579,-1592.7625988,6.638e-05,2]
[408122954,1773159038588,-600.0,6.698e-05,2]
[408122955,1773159038597,-2150.738,6.938e-05,2]
[408122956,1773159038606,-437.71882243,7.2e-05,2]
[408122957,1773159038615,-1048.48737525,7.2e-05,2]
[408122958,1773159038625,-414.0,7.223e-05,2]
[408122959,1773159038634,-420.0,7.224e-05,2]
[408122960,1773159038643,-720.0,7.368e-05,2]
[408122961,1773159038652,-500.05039856,7.373e-05,2]
[408122962,1773159038662,-500.0,7.373e-05,2]
[408122963,1773159038672,-500.0,7.373e-05,2]
[408122964,1773159038681,-500.0,7.373e-05,2]
[408122965,1773159038690,-500.0,7.373e-05,2]
[408122966,1773159038699,-500.0,7.373e-05,2]
[408122967,1773159038709,-500.0,7.373e-05,2]
[408122968,1773159038718,-500.0,7.373e-05,2]
[408122969,1773159038728,-500.0,7.373e-05,2]
[408122970,1773159038738,-500.0,7.373e-05,2]
[408122971,1773159038747,-260.14021253,7.373e-05,2]
[408122972,1773159038757,-500.0,7.373e-05,2]
[408122973,1773159038766,-529.04271104,7.373e-05,2]
[408122974,1773159038775,-500.0,7.373e-05,2]
[408122976,1773159038785,-500.0,7.373e-05,2]
[408122978,1773159038794,-500.0,7.373e-05,2]
[408122980,1773159038803,-500.0,7.373e-05,2]
[408122982,1773159038812,-500.0,7.373e-05,2]
[408122984,1773159038821,-1392.0,7.376e-05,2]
[408122986,1773159038830,-639.0,7.376e-05,2]
[408122988,1773159038839,-733.0,7.376e-05,2]
[408122989,1773159038848,-436.0,7.376e-05,2]
[408122991,1773159038857,-215.91646739,7.382e-05,2]
[408122994,1773159038867,-500.0,7.382e-05,2]
[408122995,1773159038876,-500.0,7.382e-05,2]
[408122997,1773159038885,-256.26362273,7.382e-05,2]
[408122999,1773159038896,-500.0,7.382e-05,2]
[408123001,1773159038905,-2470.22571765,7.383e-05,2]
[408123003,1773159038915,-162.380719,7.394e-05,2]
[408123005,1773159038924,-445.202766,7.394e-05,2]
[408123007,1773159038934,-500.0,7.394e-05,2]
[408123009,1773159038943,-500.0,7.394e-05,2]
[408123011,1773159038952,-500.0,7.394e-05,2]
[408123013,1773159038961,-151.0,7.394e-05,2]
[408123015,1773159038970,-500.0,7.394e-05,2]
[408123017,1773159038979,-156.587,7.394e-05,2]
[408123019,1773159038988,-162.380719,7.394e-05,2]
[408123021,1773159038997,-500.0,7.394e-05,2]
[408123023,1773159039008,-168.3888056,7.394e-05,2]
[408123025,1773159039017,-500.0,7.394e-05,2]
[408123027,1773159039026,-174.61919141,7.394e-05,2]
[408123029,1773159039036,-500.0,7.394e-05,2]
[408123031,1773159039045,-181.08010149,7.394e-05,2]
[408123033,1773159039054,-500.0,7.394e-05,2]
[408123035,1773159039063,-187.78006525,7.394e-05,2]
[408123037,1773159039073,-500.0,7.394e-05,2]
[408123039,1773159039082,-194.72792766,7.394e-05,2]
[408123041,1773159039092,-500.0,7.394e-05,2]
[408123043,1773159039102,-201.93286099,7.394e-05,2]
[408123045,1773159039112,-500.0,7.394e-05,2]
[408123047,1773159039121,-209.40437684,7.394e-05,2]
[408123049,1773159039130,-500.0,7.394e-05,2]
[408123051,1773159039139,-217.15233878,7.394e-05,2]
[408123053,1773159039148,-500.0,7.394e-05,2]
[408123055,1773159039157,-500.0,7.394e-05,2]
[408123085,1773159039432,-225.18697532,7.394e-05,2]
[408123088,1773159039446,-233.51889341,7.394e-05,2]
[408123089,1773159039455,-500.0,7.394e-05,2]
[408123092,1773159039465,-242.15909246,7.394e-05,2]
[408123094,1773159039474,-500.0,7.394e-05,2]
[408123095,1773159039485,-251.11897888,7.394e-05,2]
[408123097,1773159039494,-500.0,7.394e-05,2]
[408123099,1773159039503,-260.4103811,7.394e-05,2]
[408123101,1773159039513,-337.45120289,7.394e-05,2]
[408123103,1773159039528,-270.0455652,7.394e-05,2]
[408123105,1773159039538,-280.03725112,7.394e-05,2]
[408123107,1773159039547,-290.39862941,7.394e-05,2]
[408123110,1773159039567,-301.1433787,7.394e-05,2]
[408123112,1773159039577,-537.6845,7.394e-05,2]
[408123114,1773159039586,-500.0,7.398e-05,2]
[408123116,1773159039596,-212.04700991,7.398e-05,2]
[408123118,1773159039605,-500.0,7.398e-05,2]
[408123120,1773159039614,-500.0,7.398e-05,2]
[408123122,1773159039624,-500.0,7.398e-05,2]
[408123124,1773159039634,-500.0,7.398e-05,2]
[408123126,1773159039644,-500.0,7.398e-05,2]
[408123128,1773159039654,-500.0,7.398e-05,2]
[408123130,1773159039665,-500.0,7.398e-05,2]
[408123132,1773159039674,-344.64292992,7.398e-05,2]
[408123134,1773159039683,-500.0,7.398e-05,2]
[408123136,1773159039693,-500.0,7.398e-05,2]
[408123138,1773159039703,-500.0,7.398e-05,2]
[408123140,1773159039713,-500.0,7.398e-05,2]
[408123142,1773159039723,-215.38801604,7.398e-05,2]
[408123144,1773159039733,-500.0,7.398e-05,2]
[408123146,1773159039743,-462.04700991,7.398e-05,2]
[408123148,1773159039753,-169166.48438485,7.399e-05,2]
[408123201,1773159040263,-59210.83578084,7.399e-05,2]
[408123304,1773159041018,-6849.1,7.325e-05,2]
[408123313,1773159043630,-1000.0,7.325e-05,2]
[408123318,1773159046225,-10580.79385896,7.325e-05,2]
[408123319,1773159046394,-3066.93109748,7.325e-05,2]
[408123324,1773159648054,2000.0,0.000102,120]
[408123326,1773159955110,-296.53253838,5.761e-05,2]
[408123327,1773160039108,-205.98462352,5.646e-05,2]
[408123328,1773160050107,-918.61150349,5.646e-05,2]
[408123329,1773160156090,-3852.51719419,5.646e-05,2]
[408123330,1773160156111,-5000.0,5.703e-05,2]
[408123331,1773160156134,-300.0,5.788e-05,2]
[408123332,1773160156154,-223.94793972,5.79e-05,2]
[408123333,1773160156174,-300.0,5.817e-05,2]
[408123334,1773160156194,-1200.0,5.818e-05,2]
[408123335,1773160156213,-120.45922623,5.867e-05,2]
[408123336,1773160161099,-1595.03632577,5.867e-05,2]
[408123337,1773160161122,-300.0,5.992e-05,2]
[408123338,1773160161142,-506.0,5.998e-05,2]
[408123339,1773160161164,-1715.495552,6.114e-05,2]
[408123340,1773160161186,-1502.32019297,6.169e-05,2]
[408123341,1773160161205,-221.8642993,6.244e-05,2]
[408123342,1773160161228,-2979.28362996,6.269e-05,2]
[408123343,1773160167076,-281.16338573,6.269e-05,2]
[408123344,1773160170080,-245.02315564,6.269e-05,2]
[408123352,1773160232366,-5000.0,6.206e-05,2]
[408123353,1773160232376,-509.0,6.206e-05,2]
[408123354,1773160232387,-18.14987109,6.269e-05,2]
[408123355,1773160232397,-1715.495552,6.361e-05,2]
[408123356,1773160232406,-300.0,6.367e-05,2]
[408123357,1773160232415,-300.0,6.368e-05,2]
[408123358,1773160232424,-300.0,6.368e-05,2]
[408123360,1773160232434,-300.0,6.368e-05,2]
[408123362,1773160232443,-300.0,6.368e-05,2]
[408123363,1773160232452,-300.0,6.368e-05,2]
[408123364,1773160232461,-300.0,6.368e-05,2]
[408123365,1773160232471,-300.0,6.368e-05,2]
[408123366,1773160232480,-300.0,6.368e-05,2]
[408123367,1773160232490,-300.0,6.368e-05,2]
[408123368,1773160232499,-300.0,6.368e-05,2]
[408123369,1773160232509,-300.0,6.368e-05,2]
[408123370,1773160232518,-300.0,6.368e-05,2]
[408123371,1773160232527,-300.0,6.368e-05,2]
[408123372,1773160232543,-300.0,6.368e-05,2]
[408123373,1773160232553,-300.0,6.368e-05,2]
[408123374,1773160232562,-3661.68139519,6.369e-05,2]
[408123375,1773160232572,-600.0,6.494e-05,2]
[408123376,1773160232582,-4252.44123663,6.569e-05,2]
[408123377,1773160232590,-743.50735515,6.608e-05,2]
[408123378,1773160232605,-478.82850861,6.608e-05,2]
[408123685,1773160239030,-493.15968824,6.608e-05,2]
[408123687,1773160239040,-1715.495552,6.855e-05,2]
[408123689,1773160239049,-420.0,7.004e-05,2]
[408123691,1773160239058,-195.14040253,7.099e-05,2]
[408123693,1773160239067,-593.84921444,7.099e-05,2]
[408123695,1773160239077,-1969.14732525,7.1e-05,2]
[408123697,1773160239086,-5528.39541286,7.1e-05,2]
[408123699,1773160239095,-4845.66432428,7.1e-05,2]
[408123701,1773160239105,-4556.23046782,7.1e-05,2]
[408123703,1773160239114,-5042.3129403,7.1e-05,2]
[408123705,1773160239123,-450.71463718,7.1e-05,2]
[408123707,1773160239132,-297.19406919,7.1e-05,2]
[408123708,1773160239141,-1715.495552,7.102e-05,2]
[408123710,1773160239151,-151.0,7.119e-05,2]
[408123713,1773160239160,-156.587,7.119e-05,2]
[408123715,1773160239170,-162.380719,7.119e-05,2]
[408123716,1773160239179,-168.3888056,7.119e-05,2]
[408123718,1773160239190,-174.61919141,7.119e-05,2]
[408123720,1773160239199,-181.08010149,7.119e-05,2]
[408123723,1773160239208,-187.78006525,7.119e-05,2]
[408123724,1773160239217,-194.72792766,7.119e-05,2]
[408123726,1773160239227,-201.93286099,7.119e-05,2]
[408123728,1773160239236,-209.40437684,7.119e-05,2]
[408123730,1773160239245,-217.15233878,7.119e-05,2]
[408123732,1773160239253,-225.18697532,7.119e-05,2]
[408123734,1773160239262,-233.51889341,7.119e-05,2]
[408123736,1773160239272,-242.15909246,7.119e-05,2]
[408123738,1773160239281,-251.11897888,7.119e-05,2]
[408123740,1773160239291,-260.4103811,7.119e-05,2]
[408123742,1773160239299,-270.0455652,7.119e-05,2]
[408123744,1773160239308,-280.03725112,7.119e-05,2]
[408123746,1773160239317,-290.39862941,7.119e-05,2]
[408123748,1773160239326,-2150.738,7.119e-05,2]
[408123750,1773160239336,-301.1433787,7.119e-05,2]
[408123752,1773160239345,-720.0,7.144e-05,2]
[408123754,1773160239354,-1230.0,7.2e-05,2]
[408123756,1773160239364,-500.0,7.253e-05,2]
[408123758,1773160239373,-500.0,7.253e-05,2]
[408123760,1773160239382,-500.0,7.253e-05,2]
[408123762,1773160239391,-500.0,7.253e-05,2]
[408123764,1773160239400,-500.0,7.253e-05,2]
[408123766,1773160239410,-176.76350396,7.253e-05,2]
[408123767,1773160239422,-227.208306,7.253e-05,2]
[408123768,1773160239432,-448.36093245,7.253e-05,2]
[408123769,1773160239441,-175.593,7.308e-05,2]
[408123770,1773160239450,-399.5190646,7.315e-05,2]
[408123771,1773160239459,-11909.04157524,7.325e-05,2]
[408123772,1773160239469,-231.62850484,7.325e-05,2]
[408123773,1773160239478,-250.0,7.374e-05,2]
[408123774,1773160239488,-9740.6128912,7.391e-05,2]
[408123775,1773160239498,-14240.0389338,7.393e-05,2]
[408123776,1773160239507,-11805.8399025,7.393e-05,2]
[408123777,1773160239517,-1000.0,7.399e-05,2]
[408123778,1773160239526,-873.7707783,7.399e-05,2]
[408123779,1773160239536,-2191.0,7.472e-05,2]
[408123780,1773160239545,-1392.0,7.472e-05,2]
[408123781,1773160239555,-639.0,7.472e-05,2]
[408123782,1773160239566,-436.0,7.472e-05,2]
[408123783,1773160239575,-733.0,7.472e-05,2]
[408123784,1773160239584,-500.00000001,7.5e-05,2]
[408123785,1773160239594,-345.0,7.5e-05,2]
[408123786,1773160239603,-690.0,7.549e-05,2]
[408123787,1773160239613,-690.0,7.549e-05,2]
[408123788,1773160239622,-351.0,7.549e-05,2]
[408123789,1773160239631,-690.0,7.549e-05,2]
[408123790,1773160239641,-351.0,7.549e-05,2]
[408123791,1773160239650,-690.0,7.549e-05,2]
[408123792,1773160239660,-351.0,7.549e-05,2]
[408123793,1773160239948,-351.0,7.549e-05,2]
[408123794,1773160239957,-690.0,7.549e-05,2]
[408123795,1773160239967,-338.0,7.549e-05,2]
[408123796,1773160239976,-351.0,7.549e-05,2]
[408123797,1773160239985,-690.0,7.549e-05,2]
[408123798,1773160239994,-338.0,7.549e-05,2]
[408123799,1773160240004,-351.0,7.549e-05,2]
[408123801,1773160240014,-690.0,7.549e-05,2]
[408123802,1773160240023,-351.0,7.549e-05,2]
[408123803,1773160240032,-690.0,7.549e-05,2]
[408123804,1773160240041,-351.0,7.549e-05,2]
[408123805,1773160240050,-690.0,7.549e-05,2]
[408123806,1773160240059,-351.0,7.549e-05,2]
[408123807,1773160240068,-690.0,7.549e-05,2]
[408123808,1773160240076,-690.0,7.549e-05,2]
[408123809,1773160240085,-690.0,7.549e-05,2]
[408123810,1773160240094,-690.0,7.549e-05,2]
[408123811,1773160240103,-690.0,7.549e-05,2]
[408123812,1773160240111,-690.0,7.549e-05,2]
[408123813,1773160240120,-690.0,7.549e-05,2]
[408123814,1773160240129,-690.0,7.549e-05,2]
[408123815,1773160240139,-338.0,7.549e-05,2]
[408123816,1773160240148,-690.0,7.549e-05,2]
[408123817,1773160240157,-338.0,7.549e-05,2]
[408123818,1773160240166,-690.0,7.549e-05,2]
[408123819,1773160240175,-338.0,7.549e-05,2]
[408123820,1773160240184,-690.0,7.549e-05,2]
[408123821,1773160240192,-461.28706194,7.549e-05,2]
[408123822,1773160240201,-690.0,7.549e-05,2]
[408123823,1773160240210,-690.0,7.549e-05,2]
[408123824,1773160240219,-690.0,7.549e-05,2]
[408123825,1773160240228,-690.0,7.549e-05,2]
[408123826,1773160240237,-690.0,7.549e-05,2]
[408123827,1773160240246,-690.0,7.549e-05,2]
[408123828,1773160240255,-690.0,7.549e-05,2]
[408123829,1773160240265,-690.0,7.549e-05,2]
[408123830,1773160240275,-690.0,7.549e-05,2]
[408123831,1773160240284,-690.0,7.549e-05,2]
[408123832,1773160240293,-690.0,7.549e-05,2]
[408123833,1773160240302,-690.0,7.549e-05,2]
[408123834,1773160240312,-690.0,7.549e-05,2]
[408123835,1773160240321,-690.0,7.549e-05,2]
[408123836,1773160240331,-690.0,7.549e-05,2]
[408123837,1773160240340,-690.0,7.549e-05,2]
[408123838,1773160240350,-690.0,7.549e-05,2]
[408123839,1773160240359,-690.0,7.549e-05,2]
[408123840,1773160240369,-690.0,7.549e-05,2]
[408123841,1773160240379,-690.0,7.549e-05,2]
[408123842,1773160240388,-690.0,7.549e-05,2]
[408123843,1773160240398,-690.0,7.549e-05,2]
[408123844,1773160240407,-690.0,7.549e-05,2]
[408123845,1773160240416,-690.0,7.549e-05,2]
[408123846,1773160240425,-690.0,7.549e-05,2]
[408123847,1773160240435,-690.0,7.549e-05,2]
[408123848,1773160240444,-690.0,7.549e-05,2]
[408123849,1773160240453,-690.0,7.549e-05,2]
[408123850,1773160240462,-690.0,7.549e-05,2]
[408123851,1773160240471,-690.0,7.549e-05,2]
[408123852,1773160240481,-521.35714691,7.549e-05,2]
[408123853,1773160240490,-234.09262083,7.553e-05,2]
[408123854,1773160240499,-10208.35781164,7.596e-05,2]
[408123855,1773160240509,-166.0,7.649e-05,2]
[408123856,1773160240519,-166.0,7.649e-05,2]
[408123857,1773160240527,-351.0,7.649e-05,2]
[408123858,1773160240536,-166.0,7.649e-05,2]
[408123859,1773160240546,-172.0,7.649e-05,2]
[408123860,1773160240555,-166.0,7.649e-05,2]
[408123861,1773160240564,-166.0,7.649e-05,2]
[408123862,1773160240573,-338.0,7.649e-05,2]
[408123863,1773160240582,-166.0,7.649e-05,2]
[408123864,1773160240591,-338.0,7.649e-05,2]
[408123865,1773160240600,-166.0,7.649e-05,2]
[408123866,1773160240609,-338.0,7.649e-05,2]
[408123867,1773160240618,-166.0,7.649e-05,2]
[408123868,1773160240627,-166.0,7.649e-05,2]
[408123869,1773160240636,-338.0,7.649e-05,2]
[408123870,1773160240646,-166.0,7.649e-05,2]
[408123871,1773160240655,-228.55185079,7.649e-05,2]
[408123872,1773160240664,-338.0,7.649e-05,2]
[408123873,1773160240674,-172.0,7.649e-05,2]
[408123874,1773160240683,-338.0,7.649e-05,2]
[408123875,1773160240691,-338.0,7.649e-05,2]
[408123876,1773160240701,-351.0,7.649e-05,2]
[408123877,1773160240709,-351.0,7.649e-05,2]
[408123878,1773160240719,-351.0,7.649e-05,2]
[408123879,1773160240728,-351.0,7.649e-05,2]
[408123880,1773160240737,-2230.315306,7.667e-05,2]
[408123881,1773160240746,-465.4232648,7.668e-05,2]
[408123882,1773160240755,-279.81774584,7.668e-05,2]
[408123883,1773160240764,-503.67194251,7.668e-05,2]
[408123884,1773160240774,-837.76187664,7.668e-05,2]
[408123885,1773160240783,-895.41678669,7.668e-05,2]
[408123886,1773160240793,-1489.35444736,7.668e-05,2]
[408123887,1773160240806,-1399.0887292,7.668e-05,2]
[408123889,1773160240815,-2327.116324,7.668e-05,2]
[408123891,1773160240826,-2014.68777005,7.668e-05,2]
[408123893,1773160240840,-3351.04750657,7.668e-05,2]
[408123895,1773160240849,-2742.21390923,7.668e-05,2]
[408123897,1773160240858,-4561.14799505,7.668e-05,2]
[408123899,1773160240868,-3581.66714675,7.668e-05,2]
[408123901,1773160240878,-185.0,7.704e-05,2]
[408123903,1773160240888,-894.06715199,7.717e-05,2]
[408123905,1773160240897,-264.25856887,7.79e-05,2]
[408123907,1773160240906,-500.0,7.8e-05,2]
[408123909,1773160240915,-641.6399779,7.801e-05,2]
[408123911,1773160240924,-500.0,7.801e-05,2]
[408123913,1773160240934,-500.0,7.801e-05,2]
[408123915,1773160240943,-4533.0474826,7.82e-05,2]
[408123917,1773160240952,-500.0,7.853e-05,2]
[408123919,1773160240961,-500.0,7.853e-05,2]
[408123921,1773160240969,-500.0,7.853e-05,2]
[408123922,1773160240978,-500.0,7.853e-05,2]
[408123923,1773160240987,-500.0,7.853e-05,2]
[408123924,1773160240995,-500.0,7.853e-05,2]
[408123925,1773160241004,-500.0,7.853e-05,2]
[408123926,1773160241013,-500.0,7.853e-05,2]
[408123927,1773160241022,-500.0,7.853e-05,2]
[408123928,1773160241031,-500.0,7.853e-05,2]
[408123929,1773160241040,-500.0,7.853e-05,2]
[408123930,1773160241049,-500.0,7.853e-05,2]
[408123931,1773160241058,-500.0,7.853e-05,2]
[408123932,1773160241067,-500.0,7.853e-05,2]
[408123933,1773160241076,-500.0,7.853e-05,2]
[408123934,1773160241085,-500.0,7.853e-05,2]
[408123935,1773160241095,-500.0,7.853e-05,2]
[408123936,1773160241103,-500.0,7.853e-05,2]
[408123937,1773160241112,-500.0,7.853e-05,2]
[408123938,1773160241121,-500.0,7.853e-05,2]
[408123939,1773160241130,-500.0,7.853e-05,2]
[408123940,1773160241139,-500.0,7.853e-05,2]
[408123941,1773160241148,-864.0,7.858e-05,2]
[408123942,1773160241157,-148679.80596572,7.874e-05,2]
[408123943,1773160241166,-5951.46037166,7.878e-05,2]
[408123944,1773160241176,-168941.79677448,8.1e-05,3]
[408123945,1773160241185,-5596.3549168,8.133e-05,2]
[408123946,1773160241194,-2312.83697232,8.215e-05,2]
[408123947,1773160241203,-500.0,8.219e-05,2]
[408123948,1773160241212,-377.18996475,8.219e-05,2]
[408123949,1773160241221,-150.0,8.246e-05,2]
[408123950,1773160241230,-500.0,8.274e-05,2]
[408123951,1773160241240,-500.32969765,8.3e-05,2]
[408123953,1773160241250,-500.0,8.329e-05,2]
[408123955,1773160241259,-3177.3821678,8.336e-05,2]
[408123957,1773160241268,-161.53526232,8.381e-05,2]
[408123959,1773160241278,-500.0,8.383e-05,2]
[408123961,1773160241287,-500.0,8.401e-05,2]
[408123963,1773160241296,-500.0,8.401e-05,2]
[408123965,1773160241305,-1000.0,8.401e-05,2]
[408123967,1773160241314,-463.83545607,8.401e-05,2]
[408123969,1773160241324,-500.0,8.438e-05,2]
[408123971,1773160241333,-6771.58944932,8.448e-05,2]
[408123973,1773160241343,-2173.4245143,8.458e-05,2]
[408123975,1773160241352,-2634.2389481,8.46e-05,2]
[408123977,1773160241362,-10000.0,8.48e-05,2]
[408123979,1773160241372,-500.0,8.493e-05,2]
[408123981,1773160241381,-708.9697919,8.547e-05,2]
[408123983,1773160241391,-500.0,8.548e-05,2]
[408123985,1773160241400,-500.0,8.603e-05,2]
[408123987,1773160241410,-1000.0,8.644e-05,2]
[408123989,1773160241419,-500.0,8.657e-05,2]
[408123991,1773160241428,-484.9565599,8.696e-05,2]
[408123993,1773160241437,-587.7781583,8.698e-05,2]
[408123995,1773160241446,-500.0,8.712e-05,2]
[408123997,1773160241456,-8050.69232911,8.762e-05,2]
[408123999,1773160241465,-2398.4119403,8.763e-05,2]
[408124001,1773160241474,-500.0,8.767e-05,2]
[408124003,1773160241483,-500.0,8.822e-05,2]
[408124005,1773160241492,-500.0,8.877e-05,2]
[408124007,1773160241501,-500.0,8.931e-05,2]
[408124009,1773160241511,-501.9022056,8.948e-05,2]
[408124011,1773160241520,-5686.4445572,8.98e-05,2]
[408124013,1773160241531,-464.10909669,8.986e-05,2]
[408124015,1773160241540,-9809.260453,9e-05,2]
[408124017,1773160241549,-5000.0,9e-05,2]
[408124019,1773160241559,-5000.0,9e-05,2]
[408124021,1773160241568,-5000.0,9e-05,2]
[408124023,1773160241577,-5000.0,9e-05,2]
[408124025,1773160241586,-4388.40038853,9.288e-05,2]
[408124027,1773160241596,-2487.15318209,9.311e-05,2]
[408124029,1773160241605,-1000.0,9.508e-05,2]
[408124031,1773160241614,-244.0,9.508e-05,2]
[408124033,1773160241623,-5714.54663666,9.605e-05,2]
[408124035,1773160241632,-5605.51410158,9.683e-05,2]
[408124037,1773160241642,-304.56919802,9.79e-05,2]
[408124039,1773160241651,-2579.17784983,9.859e-05,2]
[408124041,1773160241660,-382.78790998,9.9e-05,2]
[408124043,1773160241669,-924.51191795,0.0001,2]
[408124045,1773160241678,-2515.2462716,0.0001,2]
[408124047,1773160241687,-1602.66224047,0.0001,2]
[408124049,1773160241698,-821.48813385,0.0001,10]
[408124051,1773160241707,-1584.61946789,0.0001,2]
[408124053,1773160241716,-442.47537097,0.0001,2]
[408124055,1773160241725,-681.73042509,0.0001,2]
[408124057,1773160241734,-440.34469607,0.0001,2]
[408124059,1773160241743,-2000.0,0.0001,2]
[408124061,1773160241752,-20.83887316,0.00010099,2]
[408124063,1773160241761,-2771.13526488,0.000101,2]
[408124065,1773160241771,-2000.0,0.000101,2]
[408124067,1773160241780,-341.53426957,0.000102,2]
[408124069,1773160241790,-500.0,0.000102,2]
[408124071,1773160241804,-150.0,0.000102,10]
[408124073,1773160241813,-8125.86107846,0.000102,5]
[408124075,1773160241823,-1000.0,0.000102,2]
[408124077,1773160241832,-218.84547706,0.000102,2]
[408124079,1773160241843,-202.4191681,0.000102,2]
[408124081,1773160241852,-233.19432907,0.000102,2]
[408124083,1773160241863,-287.76080434,0.000102,2]
[408124085,1773160241872,-184.3390664,0.000102,2]
[408124087,1773160241881,-207.86921061,0.000102,2]
[408124089,1773160241891,-221.23768547,0.000102,2]
[408124091,1773160241900,-215.7230151,0.000102,2]
[408124093,1773160241910,-220.02715674,0.000102,2]
[408124095,1773160241919,-199.73290842,0.000102,2]
[408124097,1773160241928,-292.82613974,0.000102,2]
[408124099,1773160241937,-1000.0,0.00010302,2]
[408124101,1773160241946,-461.87254415,0.00010368,15]
[408124103,1773160241961,-1000.0,0.00010404,2]
[408124105,1773160241970,-2674.60743027,0.00010407,2]
[408124107,1773160241979,-1602.66224047,0.00010411,2]
[408124109,1773160241988,-681.73042509,0.0001042,2]
[408124111,1773160241997,-440.34469607,0.0001042,2]
[408124114,1773160242009,-1584.61946789,0.00010427,2]
[408124116,1773160242018,-442.47537097,0.00010427,2]
[408124118,1773160242027,-924.51191795,0.00010436,2]
[408124120,1773160242036,-1000.0,0.00010459,2]
[408124121,1773160242046,-492.0,0.00010459,2]
[408124124,1773160242055,-1021.433,0.00010472,2]
[408124126,1773160242065,-549.552,0.00010472,2]
[408124128,1773160242074,-436.0,0.00010472,2]
[408124129,1773160242084,-728.0,0.00010472,2]
[408124131,1773160242094,-1621.41276538,0.00010501,2]
[408124134,1773160242105,-1000.0,0.00010506,2]
[408124135,1773160242114,-1000.0,0.00010608,2]
[408124137,1773160242124,-461.87254415,0.00010636,16]
[408124140,1773160242135,-1000.0,0.0001071,2]
[408124142,1773160242145,-1000.0,0.00010812,2]
[408124143,1773160242154,-1602.66224047,0.00010822,2]
[408124146,1773160242164,-681.73042509,0.0001084,2]